fUST/lending_fUST_20251110
["ID","MTS","AMOUNT","RATE_DAILY","PERIOD"]
[393515079,1762744246710,-5312.5,0.0002191,2]
[393515085,1762744246763,-10746.78166921,0.0002191,2]
[393515088,1762744246775,-3186.78922494,0.0002191,2]
[393515090,1762744246790,-487.07416272,0.0002191,2]
[393515094,1762744246819,-4334.22512672,0.0002191,2]
[393515096,1762744246829,-540.59175747,0.0002191,2]
[393515098,1762744246838,-500.0,0.00021942,2]
[393515100,1762744246847,-500.0,0.00021942,2]
[393515102,1762744246857,-188.0,0.00021943,2]
[393515104,1762744246866,-726.71866518,0.0002199,2]
[393515106,1762744246875,-267.67508479,0.00021999,2]
[393515108,1762744246885,-615.51853137,0.00022,5]
[393515152,1762744255504,296.44,0.00027397,120]
[393515154,1762744317403,1914.18,0.00019,3]
[393515159,1762744387969,614.30498985,0.00037014,60]
[393515160,1762744389657,500.0,0.00037014,30]
[393515161,1762744389904,524.34047974,0.00037014,30]
[393515162,1762744396091,500.0,0.00037014,60]
[393515163,1762744420853,150.0,0.00037014,20]
[393515164,1762744460814,460.59263629,0.00037014,60]
[393515165,1762744466508,247.96999923,0.00037014,120]
[393515166,1762744479962,193.5450667,0.000328,120]
[393515167,1762744489321,161.71,0.00037014,20]
[393515168,1762744498713,150.0,0.00037014,20]
[393515169,1762744536062,175.84233918,0.000328,120]
[393515170,1762744539401,1500.0,0.00032877,120]
[393515171,1762744539450,405.0,0.00026822,120]
[393515172,1762744540660,405.0,0.00028164,120]
[393515173,1762744541888,405.0,0.00029572,120]
[393515174,1762744543092,405.0,0.0003105,120]
[393515175,1762744544349,405.0,0.00032603,120]
[393515176,1762744572514,1000.0,0.00037014,20]
[393515177,1762744728243,160.0,0.000328,120]
[393515178,1762744735009,160.0,0.000328,120]
[393515179,1762744795138,193.5450667,0.000328,120]
[393515180,1762744834219,203.0,0.00026548,120]
[393515181,1762744835624,203.0,0.00027876,120]
[393515182,1762744837196,203.0,0.00029269,120]
[393515183,1762744838570,203.0,0.00030733,120]
[393515184,1762744839995,203.0,0.0003227,120]
[393515185,1762744842799,164.5,0.000328,120]
[393515186,1762744849779,175.84233919,0.000328,120]
[393515187,1762744856892,300.0,0.00037018,120]
[393515188,1762744866675,180.0,0.000328,120]
[393515189,1762744868982,180.0,0.000328,120]
[393515190,1762744871309,180.0,0.000328,120]
[393515191,1762744874022,269.5970034,0.000328,120]
[393515197,1762745108940,193.54506671,0.000328,120]
[393515198,1762745131644,169.0,0.00025818,120]
[393515201,1762745133198,169.0,0.00027109,120]
[393515202,1762745134477,169.0,0.00028464,120]
[393515203,1762745135758,169.0,0.00029888,120]
[393515204,1762745137054,169.0,0.00031382,120]
[393515207,1762745179382,592.71311533,0.00037018,20]
[393515217,1762745304283,1970.34703265,0.00032,120]
[393515218,1762745310231,224.40837843,0.00028,120]
[393515219,1762745312419,3346.63222144,0.00018,2]
[393515220,1762745313998,244.2581275,0.0003,120]
[393515221,1762745321825,249.0,0.0002,120]
[393515225,1762745422724,193.5450667,0.000328,120]
[393515226,1762745429774,174.0,0.00025517,120]
[393515254,1762745432556,-214.71234049,0.0002,2]
[393515256,1762745432566,-106.28765951,0.00020378,2]
[393515336,1762745438432,-193.71234049,0.00020378,2]
[393515338,1762745438441,-172.35971748,0.00020378,2]
[393515340,1762745438450,-22.96670774,0.00020379,2]
[393515342,1762745438461,-7106.6781338,0.00020379,2]
[393515344,1762745438472,-644.52289732,0.00020379,2]
[393515346,1762745438484,-10136.61465681,0.00020379,2]
[393515348,1762745438495,-1358.18261743,0.00020379,2]
[393515350,1762745438505,-294.585467,0.00020821,2]
[393515352,1762745438514,-133.26110012,0.00021,4]
[393515355,1762745438530,-27.73889988,0.00021,4]
[393515357,1762745438540,-161.0,0.00021,4]
[393515359,1762745438550,-482.53923253,0.00021003,2]
[393515361,1762745438566,-517.46076747,0.00021003,2]
[393515363,1762745438576,-309.540518,0.00021398,2]
[393515366,1762745438585,-570.96927728,0.00021585,2]
[393515569,1762745440763,-1198.23536258,0.00021585,2]
[393515571,1762745440772,-509.45287817,0.00021673,2]
[393515575,1762745440782,-500.0,0.00021673,2]
[393515578,1762745440791,-278.91,0.00021673,2]
[393515580,1762745440801,-15118.1861579,0.00021685,2]
[393515582,1762745440810,-18219.3101352,0.00021685,2]
[393515584,1762745440823,-954.0247075,0.00021685,2]
[393515586,1762745440832,-257.6292151,0.00021685,2]
[393515588,1762745440841,-233.16,0.000217,2]
[393515590,1762745440851,-341.0,0.00021701,2]
[393515592,1762745440861,-341.0,0.00021736,2]
[393515594,1762745440870,-160.183198,0.00021773,7]
[393515595,1762745440881,-221.631673,0.00021773,2]
[393515596,1762745440889,-221.631673,0.00021773,2]
[393515597,1762745440899,-221.631673,0.00021773,2]
[393515598,1762745440908,-221.631673,0.00021773,2]
[393515599,1762745440918,-151.0,0.00021773,7]
[393515600,1762745440928,-151.0,0.00021773,7]
[393515602,1762745440937,-151.0,0.00021773,7]
[393515604,1762745440947,-151.0,0.00021773,7]
[393515605,1762745440956,-151.0,0.00021773,7]
[393515607,1762745440965,-151.0,0.00021773,7]
[393515609,1762745440974,-151.0,0.00021773,7]
[393515611,1762745440984,-1054.03171213,0.00021773,2]
[393515613,1762745440995,-20050.85409877,0.00021773,2]
[393515614,1762745441005,-151.0,0.00021773,7]
[393515615,1762745441016,-151.0,0.00021773,7]
[393515616,1762745441025,-151.0,0.00021773,7]
[393515617,1762745441034,-360.94,0.000218,3]
[393515618,1762745441044,-726.46,0.000218,10]
[393515619,1762745441053,-1243.97,0.000218,10]
[393515620,1762745441063,-1036.64,0.000218,10]
[393515621,1762745441072,-514.50000003,0.00021809,2]
[393515622,1762745441082,-151.0,0.0002181,7]
[393515623,1762745441091,-151.0,0.0002181,7]
[393515624,1762745441101,-221.631673,0.0002181,2]
[393515625,1762745441110,-221.631673,0.0002181,2]
[393515626,1762745441119,-221.631673,0.0002181,2]
[393515627,1762745441128,-221.631673,0.0002181,2]
[393515628,1762745441137,-151.0,0.0002181,7]
[393515629,1762745441145,-151.0,0.0002181,7]
[393515630,1762745441155,-151.0,0.0002181,7]
[393515631,1762745441168,-151.0,0.0002181,7]
[393515632,1762745441178,-151.0,0.0002181,7]
[393515633,1762745441187,-151.0,0.0002181,7]
[393515634,1762745441196,-155.69625,0.0002181,7]
[393515635,1762745441206,-151.0,0.0002181,7]
[393515636,1762745441215,-151.0,0.0002181,7]
[393515637,1762745441225,-151.0,0.0002181,7]
[393515638,1762745441236,-157.396839,0.0002181,7]
[393515639,1762745441245,-37168.47460053,0.0002181,2]
[393515640,1762745441257,-3608.13182916,0.0002181,2]
[393515784,1762745443624,-605.16493631,0.0002181,2]
[393515785,1762745443732,-2606.14333278,0.0002181,2]
[393515791,1762745446784,-1075.6164,0.0002181,2]
[393515792,1762745446845,-1075.6164,0.0002181,2]
[393515796,1762745543983,161.0,0.000328,120]
[393515797,1762745550143,160.0,0.000328,120]
[393515798,1762745611773,259.9701624,0.00025,120]
[393515799,1762745624824,260715.4865,0.0003287,120]
[393515800,1762745736269,193.54506671,0.000328,120]
[393515801,1762745931797,906.4778728,0.00032877,120]
[393515803,1762746125357,485.195944,0.00013699,2]
[393515806,1762746402991,99920.84734216,0.000328,120]
[393515830,1762746632779,-874.63818407,0.00018956,2]
[393515833,1762746632791,-45.36181593,0.00018956,2]
[393515835,1762746632800,-172.79155314,0.00019052,2]
[393515837,1762746632809,-1200.0,0.00019889,2]
[393515839,1762746632818,-164.08794523,0.0001989,2]
[393515841,1762746632827,-171.1964543,0.00019931,2]
[393515842,1762746632837,-1200.0,0.00019972,2]
[393515844,1762746632848,-300.0,0.00019972,2]
[393515846,1762746632857,-471.51422908,0.00019973,2]
[393515848,1762746632867,-500.0,0.00019973,2]
[393515850,1762746632876,-501.30370911,0.00019973,2]
[393515852,1762746632885,-500.0,0.00019973,2]
[393515854,1762746632894,-500.0,0.00019973,2]
[393515857,1762746632903,-315.24702615,0.00019973,2]
[393515860,1762746632913,-501.82760467,0.00019973,2]
[393515863,1762746632923,-500.0,0.00019973,2]
[393515866,1762746632933,-150.0,0.00019973,2]
[393515869,1762746632943,-503.42356957,0.00019973,2]
[393515872,1762746632954,-514.88995608,0.00019973,2]
[393515875,1762746632964,-503.71198577,0.00019973,2]
[393515878,1762746632974,-500.0,0.00019973,2]
[393515881,1762746632984,-500.0,0.00019973,2]
[393515884,1762746632995,-500.0,0.00019973,2]
[393515886,1762746633006,-503.05882217,0.00019973,2]
[393515888,1762746633016,-797.32,0.0001998,3]
[393515890,1762746633026,-500.0,0.00019985,2]
[393515892,1762746633036,-500.0,0.00019985,2]
[393515894,1762746633046,-500.0,0.00019985,2]
[393515896,1762746633055,-591.26160648,0.00019985,2]
[393515898,1762746633065,-500.0,0.00019985,2]
[393515900,1762746633075,-430.68687012,0.00019985,2]
[393515902,1762746633084,-500.0,0.00019985,2]
[393515904,1762746633097,-500.0,0.00019985,2]
[393515906,1762746633106,-500.0,0.00019985,2]
[393515908,1762746633116,-500.0,0.00019985,2]
[393515910,1762746633126,-500.0,0.00019985,2]
[393515912,1762746633136,-381.90993131,0.00019985,2]
[393515914,1762746633146,-500.0,0.00019985,2]
[393515916,1762746633156,-500.0,0.00019985,2]
[393515918,1762746633166,-500.0,0.00019985,2]
[393515920,1762746633177,-500.0,0.00019985,2]
[393515922,1762746633187,-500.0,0.00019985,2]
[393515924,1762746633197,-500.0,0.00019985,2]
[393515926,1762746633207,-500.0,0.00019985,2]
[393515928,1762746633217,-500.0,0.00019985,2]
[393515930,1762746633226,-567.23324578,0.00019985,2]
[393515932,1762746633236,-500.0,0.00019985,2]
[393515934,1762746633246,-500.0,0.00019985,2]
[393515936,1762746633256,-373.26616371,0.00019985,2]
[393515938,1762746633266,-500.0,0.00019985,2]
[393515940,1762746633277,-500.0,0.00019985,2]
[393515942,1762746633286,-500.0,0.00019985,2]
[393515944,1762746633296,-500.0,0.00019985,2]
[393515946,1762746633305,-500.0,0.00019985,2]
[393515948,1762746633314,-500.0,0.00019985,2]
[393515950,1762746633323,-500.0,0.00019985,2]
[393515951,1762746633333,-500.0,0.00019985,2]
[393515953,1762746633344,-500.0,0.00019985,2]
[393515955,1762746633354,-500.0,0.00019985,2]
[393515956,1762746633365,-154.995922,0.00019986,7]
[393515957,1762746633375,-156.046306,0.00019986,7]
[393515958,1762746633385,-151.0,0.00019987,7]
[393515959,1762746633395,-151.0,0.00019988,7]
[393515960,1762746633404,-151.0,0.00019988,7]
[393515961,1762746633414,-500.0,0.00019988,2]
[393515962,1762746633424,-360.15000002,0.00019989,2]
[393515963,1762746633434,-243.54622217,0.00019989,2]
[393515964,1762746633443,-151.0,0.00019989,7]
[393515965,1762746633452,-151.0,0.00019989,7]
[393515966,1762746633463,-500.0,0.00019989,2]
[393515967,1762746633472,-500.0,0.00019989,2]
[393515968,1762746633482,-500.0,0.00019989,2]
[393515969,1762746633491,-500.0,0.00019989,2]
[393515970,1762746633500,-500.0,0.00019989,2]
[393515971,1762746633510,-151.0,0.00019989,7]
[393515972,1762746633519,-100000.0,0.0001999,2]
[393515973,1762746633529,-287.941672,0.0001999,2]
[393515974,1762746633541,-287.941672,0.0001999,2]
[393515975,1762746633553,-287.941672,0.0001999,2]
[393515976,1762746633563,-287.941672,0.0001999,2]
[393515977,1762746633573,-151.0,0.0001999,7]
[393515978,1762746633584,-151.0,0.0001999,7]
[393515979,1762746633595,-151.0,0.0001999,7]
[393515980,1762746633605,-160.47,0.0002,2]
[393515981,1762746633614,-160.47,0.0002,2]
[393515982,1762746633625,-160.47,0.0002,2]
[393515983,1762746633634,-160.47,0.0002,2]
[393515984,1762746633644,-300.0,0.0002011,2]
[393515985,1762746633653,-485.195944,0.00020187,2]
[393515986,1762746633663,-450.0,0.00020247,2]
[393515987,1762746633673,-534.39878608,0.00020384,2]
[393515988,1762746633682,-151.0,0.000204,3]
[393515989,1762746633691,-223.128,0.00020471,2]
[393515990,1762746633701,-1000.0,0.00020521,2]
[393515991,1762746633711,-1000.0,0.00020521,2]
[393515992,1762746633720,-1000.0,0.00020521,2]
[393515993,1762746633730,-1000.0,0.00020521,2]
[393515994,1762746633740,-1000.0,0.00020521,2]
[393515995,1762746633750,-500.0,0.00020547,2]
[393515996,1762746633759,-500.0,0.00020547,2]
[393515997,1762746633769,-500.0,0.00020547,2]
[393515998,1762746633778,-219.79462325,0.00020547,2]
[393515999,1762746633787,-177.494381,0.00020584,2]
[393516000,1762746633797,-151.0,0.000206,4]
[393516001,1762746633806,-151.0,0.000207,4]
[393516002,1762746633816,-500.0,0.00020789,2]
[393516003,1762746633825,-287.941672,0.0002079,2]
[393516004,1762746633835,-287.941672,0.0002079,2]
[393516005,1762746633847,-287.941672,0.0002079,2]
[393516006,1762746633856,-287.941672,0.0002079,2]
[393516007,1762746633866,-151.0,0.0002079,7]
[393516008,1762746633875,-151.0,0.0002079,7]
[393516009,1762746633884,-151.0,0.000208,4]
[393516010,1762746633893,-227.28081209,0.00020821,2]
[393516011,1762746633904,-207.576186,0.00020821,7]
[393516012,1762746633914,-1000.0,0.00020856,2]
[393516013,1762746633924,-1000.0,0.00020856,2]
[393516014,1762746633933,-1000.0,0.00020856,2]
[393516015,1762746633943,-1000.0,0.00020856,2]
[393516016,1762746633953,-1122.20830686,0.00020856,2]
[393516017,1762746633962,-164.08794522,0.00020872,2]
[393516018,1762746633972,-18634.53757785,0.00020872,2]
[393516019,1762746633982,-180.0449168,0.00020872,2]
[393516020,1762746633991,-579.58716869,0.00020873,2]
[393516021,1762746634001,-500.0,0.00020873,2]
[393516022,1762746634010,-502.71645304,0.00020873,2]
[393516023,1762746634020,-500.0,0.00020873,2]
[393516024,1762746634031,-500.0,0.00020873,2]
[393516025,1762746634040,-461.34238031,0.00020873,2]
[393516026,1762746634050,-504.69310269,0.00020873,2]
[393516027,1762746634059,-500.0,0.00020873,2]
[393516028,1762746634070,-500.0,0.00020873,2]
[393516029,1762746634080,-500.0,0.00020873,2]
[393516030,1762746634090,-501.34361162,0.00020873,2]
[393516031,1762746634102,-500.86622683,0.00020873,2]
[393516032,1762746634111,-501.03202493,0.00020873,2]
[393516033,1762746634121,-639.04921858,0.00020873,2]
[393516034,1762746634130,-369.44257297,0.00020873,2]
[393516035,1762746634140,-501.8343716,0.00020873,2]
[393516036,1762746634150,-502.09552185,0.00020873,2]
[393516037,1762746634159,-508.15171435,0.00020873,2]
[393516038,1762746634168,-500.0,0.00020873,2]
[393516039,1762746634178,-502.02688537,0.00020873,2]
[393516040,1762746634188,-500.0,0.00020873,2]
[393516041,1762746634198,-501.29348867,0.00020873,2]
[393516042,1762746634208,-502.66597956,0.00020873,2]
[393516043,1762746634218,-500.0,0.00020873,2]
[393516044,1762746634228,-500.49438367,0.00020873,2]
[393516045,1762746634237,-158.36600614,0.00020873,2]
[393516046,1762746634247,-500.0,0.00020873,2]
[393516047,1762746634256,-500.0,0.00020873,2]
[393516048,1762746634265,-501.86697355,0.00020873,2]
[393516049,1762746634275,-501.4081612,0.00020873,2]
[393516050,1762746634285,-502.94991796,0.00020873,2]
[393516051,1762746634294,-502.61137915,0.00020873,2]
[393516052,1762746634304,-501.78735222,0.00020873,2]
[393516053,1762746634313,-502.61124102,0.00020873,2]
[393516054,1762746634323,-501.1662771,0.00020873,2]
[393516055,1762746634332,-288.45631988,0.00020873,2]
[393516056,1762746634342,-501.68760809,0.00020873,2]
[393516057,1762746634355,-500.0,0.00020873,2]
[393516058,1762746634364,-502.21457317,0.00020873,2]
[393516059,1762746634374,-500.96785088,0.00020873,2]
[393516060,1762746634383,-500.24086621,0.00020873,2]
[393516061,1762746634393,-500.0,0.00020873,2]
[393516062,1762746634493,-500.0,0.00020873,2]
[393516063,1762746634504,-500.0,0.00020873,2]
[393516064,1762746634514,-218.43217292,0.00020873,2]
[393516065,1762746634524,-305.57560182,0.00020873,2]
[393516066,1762746634534,-500.74251407,0.00020873,2]
[393516067,1762746634545,-500.0,0.00020873,2]
[393516068,1762746634557,-501.88590657,0.00020873,2]
[393516069,1762746634568,-500.0,0.00020873,2]
[393516070,1762746634577,-500.0,0.00020873,2]
[393516071,1762746634587,-168.28614119,0.00020873,2]
[393516072,1762746634596,-502.49807798,0.00020873,2]
[393516073,1762746634606,-500.0,0.00020873,2]
[393516074,1762746634615,-510.38664809,0.00020873,2]
[393516075,1762746634625,-502.47879232,0.00020873,2]
[393516076,1762746634636,-500.2264963,0.00020873,2]
[393516077,1762746634645,-500.23429631,0.00020873,2]
[393516078,1762746634655,-501.30161657,0.00020873,2]
[393516079,1762746634663,-151.0,0.00020873,7]
[393516080,1762746634672,-201.807941,0.00020873,7]
[393516081,1762746634682,-500.0,0.00020888,2]
[393516082,1762746634691,-500.0,0.00020888,2]
[393516083,1762746634700,-165.0105398,0.00020888,2]
[393516084,1762746634711,-287.941672,0.00020889,2]
[393516085,1762746634720,-287.941672,0.00020889,2]
[393516086,1762746634730,-287.941672,0.00020889,2]
[393516087,1762746634739,-287.941672,0.00020889,2]
[393516088,1762746634748,-777000.0,0.00020889,2]
[393516089,1762746634758,-500.0,0.00020972,2]
[393516090,1762746634768,-517.14274608,0.00020987,2]
[393516091,1762746634778,-287.941672,0.00020989,2]
[393516092,1762746634788,-287.941672,0.00020989,2]
[393516093,1762746634798,-287.941672,0.00020989,2]
[393516094,1762746634807,-287.941672,0.00020989,2]
[393516095,1762746634817,-151.0,0.00021,4]
[393516096,1762746634826,-201.7917084,0.00021043,2]
[393516097,1762746634837,-203.8940327,0.00021051,2]
[393516098,1762746634849,-515.69141943,0.00021068,2]
[393516099,1762746634859,-1500.0,0.00021068,2]
[393516100,1762746634869,-151.0,0.000211,4]
[393516101,1762746634878,-151.0,0.000213,4]
[393516102,1762746634888,-495.264829,0.00021398,2]
[393516103,1762746634898,-403.43074379,0.00021421,2]
[393516104,1762746634907,-618.90043141,0.00021421,2]
[393516105,1762746634917,-1000.0,0.00021421,2]
[393516106,1762746634926,-367.53681181,0.00021421,2]
[393516107,1762746634936,-711.15518131,0.00021421,2]
[393516108,1762746634946,-1000.0,0.00021421,2]
[393516109,1762746634955,-503.8086822,0.00021421,2]
[393516110,1762746634965,-1000.0,0.00021421,2]
[393516111,1762746634975,-217.05113118,0.00021421,2]
[393516112,1762746634984,-511.11865237,0.00021421,2]
[393516113,1762746634994,-507.76684739,0.00021421,2]
[393516114,1762746635004,-1000.0,0.00021421,2]
[393516115,1762746635015,-503.27427031,0.00021421,2]
[393516116,1762746635025,-1000.0,0.00021421,2]
[393516117,1762746635035,-1000.0,0.00021421,2]
[393516118,1762746635045,-501.87699389,0.00021421,2]
[393516119,1762746635055,-1000.0,0.00021421,2]
[393516120,1762746635065,-187.77514702,0.00021421,2]
[393516121,1762746635074,-501.63303694,0.00021421,2]
[393516122,1762746635084,-191.27704569,0.00021509,2]
[393516123,1762746635097,-160.0,0.000216,5]
[393516124,1762746635107,-160.0,0.000216,5]
[393516125,1762746635120,-2000.0,0.00021616,2]
[393516126,1762746635131,-156.37607245,0.00021657,2]
[393516127,1762746635141,-151.0,0.00021657,2]
[393516128,1762746635151,-164.59230681,0.00021657,2]
[393516129,1762746635160,-199.96502023,0.00021657,2]
[393516130,1762746635170,-158.79185549,0.00021657,2]
[393516131,1762746635179,-155.64392727,0.00021657,2]
[393516132,1762746635189,-153.21780288,0.00021657,2]
[393516133,1762746635198,-259.03993206,0.00021657,2]
[393516134,1762746635208,-152.60170826,0.00021657,2]
[393516135,1762746635221,-154.32781246,0.00021657,2]
[393516136,1762746635230,-159.15328207,0.00021657,2]
[393516137,1762746635240,-171.9403397,0.00021657,2]
[393516138,1762746635250,-287.941672,0.00021684,2]
[393516139,1762746635260,-287.941672,0.00021684,2]
[393516140,1762746635269,-287.941672,0.00021684,2]
[393516141,1762746635279,-287.941672,0.00021684,2]
[393516142,1762746635288,-151.0,0.000217,3]
[393516143,1762746635297,-151.0,0.00021712,2]
[393516144,1762746635307,-420.0,0.00021747,2]
[393516145,1762746635317,-202.72966054,0.00021767,2]
[393516146,1762746635326,-500.0,0.00021773,2]
[393516147,1762746635336,-151.0,0.00021773,2]
[393516148,1762746635345,-151.0,0.00021773,2]
[393516149,1762746635354,-500.0,0.00021773,2]
[393516150,1762746635364,-500.0,0.00021773,2]
[393516151,1762746635373,-500.0,0.00021773,2]
[393516152,1762746635383,-151.0,0.00021773,2]
[393516153,1762746635393,-500.0,0.00021773,2]
[393516154,1762746635402,-500.0,0.00021773,2]
[393516155,1762746635411,-500.0,0.00021773,2]
[393516156,1762746635421,-500.0,0.00021773,2]
[393516157,1762746635431,-151.0,0.00021773,2]
[393516158,1762746635440,-202.56728948,0.00021773,2]
[393516159,1762746635450,-274.73782917,0.00021773,2]
[393516160,1762746635459,-10445.3492199,0.00021795,2]
[393516161,1762746635468,-715.5185306,0.00021795,2]
[393516162,1762746635478,-2274.5942735,0.00021795,2]
[393516163,1762746635487,-193.2219114,0.00021795,2]
[393516164,1762746635497,-212.17567345,0.00021799,7]
[393516165,1762746635506,-151.0,0.000218,3]
[393516166,1762746635516,-151.0,0.000218,4]
[393516167,1762746635525,-151.0,0.000218,4]
[393516168,1762746635535,-201.99240166,0.00021809,2]
[393516169,1762746635548,-500.0,0.00021828,2]
[393516170,1762746635557,-151.0,0.00021828,2]
[393516171,1762746635567,-151.0,0.00021828,2]
[393516172,1762746635576,-500.0,0.00021828,2]
[393516173,1762746635587,-500.0,0.00021828,2]
[393516174,1762746635598,-500.0,0.00021828,2]
[393516175,1762746635607,-500.0,0.00021828,2]
[393516176,1762746635617,-500.0,0.00021828,2]
[393516177,1762746635627,-500.0,0.00021828,2]
[393516178,1762746635636,-509.17259044,0.00021828,2]
[393516179,1762746635645,-151.0,0.00021828,2]
[393516180,1762746635655,-158.63764924,0.00021873,2]
[393516181,1762746635664,-500.73955084,0.00021873,2]
[393516182,1762746635673,-418.31211021,0.00021883,2]
[393516183,1762746635683,-225.54103841,0.00021883,2]
[393516184,1762746635694,-151.0,0.00021883,2]
[393516185,1762746635705,-500.0,0.00021883,2]
[393516186,1762746635714,-179.64504174,0.00021883,2]
[393516187,1762746635722,-488.23562335,0.00021883,2]
[393516188,1762746635731,-500.0,0.00021883,2]
[393516189,1762746635740,-500.0,0.00021883,2]
[393516190,1762746635749,-500.0,0.00021883,2]
[393516191,1762746635759,-151.0,0.00021883,2]
[393516192,1762746635768,-151.0,0.000219,4]
[393516193,1762746635778,-151.0,0.000219,3]
[393516194,1762746635789,-341.0,0.00021907,2]
[393516195,1762746635798,-151.0,0.00021918,7]
[393516196,1762746635807,-151.0,0.00021918,7]
[393516197,1762746635816,-151.0,0.00021918,7]
[393516198,1762746635825,-151.0,0.00021918,7]
[393516199,1762746635835,-151.0,0.00021918,7]
[393516200,1762746635844,-151.0,0.00021918,7]
[393516201,1762746635854,-151.0,0.00021918,7]
[393516202,1762746635864,-151.0,0.00021918,7]
[393516203,1762746635874,-151.0,0.00021918,7]
[393516204,1762746635883,-151.0,0.00021918,7]
[393516205,1762746635893,-151.0,0.00021918,7]
[393516206,1762746635902,-151.0,0.00021918,7]
[393516207,1762746635912,-151.0,0.00021918,7]
[393516208,1762746635921,-151.0,0.00021918,7]
[393516209,1762746635930,-259.8429,0.00021918,7]
[393516210,1762746635939,-152.65367179,0.00021918,2]
[393516211,1762746635949,-341.0,0.00021918,2]
[393516212,1762746635958,-224.10291396,0.00021937,2]
[393516213,1762746635967,-500.0,0.00021937,2]
[393516214,1762746635977,-500.0,0.00021937,2]
[393516215,1762746635987,-500.0,0.00021937,2]
[393516216,1762746635996,-500.0,0.00021937,2]
[393516217,1762746636006,-151.0,0.00021937,2]
[393516218,1762746636015,-160.0,0.00021962,2]
[393516219,1762746636025,-1500.0,0.00021968,2]
[393516220,1762746636035,-480.01323455,0.00021968,2]
[393516221,1762746636045,-509.44333328,0.00021968,2]
[393516222,1762746636054,-508.74495575,0.00021968,2]
[393516223,1762746636064,-1500.0,0.00021968,2]
[393516224,1762746636075,-1397.08152134,0.00021968,2]
[393516225,1762746636084,-500.0,0.00021992,2]
[393516226,1762746636094,-500.0,0.00021992,2]
[393516227,1762746636105,-500.0,0.00021992,2]
[393516228,1762746636115,-500.0,0.00021992,2]
[393516229,1762746636126,-233.92370278,0.00021992,2]
[393516230,1762746636137,-4742.50708384,0.00022,5]
[393516231,1762746636151,-1299.03865876,0.00022,5]
[393516232,1762746636171,-1404.82567943,0.00022,5]
[393516233,1762746636182,-900.41152114,0.00022,5]
[393516234,1762746636193,-1632.96652824,0.00022,5]
[393516235,1762746636212,-500.0,0.00019985,2]
[393516236,1762746636226,-38.86766049,0.00019985,2]
[393516267,1762746638559,-461.13233951,0.00019985,2]
[393516269,1762746638569,-500.0,0.00019985,2]
[393516271,1762746638579,-500.0,0.00019985,2]
[393516273,1762746638589,-500.0,0.00019985,2]
[393516275,1762746638599,-500.0,0.00019985,2]
[393516277,1762746638609,-500.0,0.00019985,2]
[393516279,1762746638620,-500.0,0.00019985,2]
[393516281,1762746638630,-189.86766049,0.00019985,2]
[393516283,1762746638641,-310.13233951,0.00019985,2]
[393516285,1762746638651,-500.0,0.00019985,2]
[393516287,1762746638660,-500.0,0.00019985,2]
[393516289,1762746638670,-500.0,0.00019985,2]
[393516291,1762746638679,-500.0,0.00019985,2]
[393516293,1762746638689,-500.0,0.00019985,2]
[393516294,1762746638698,-153.198348,0.00019986,7]
[393516295,1762746638708,-151.0,0.00020548,7]
[393516296,1762746638717,-151.0,0.00020548,7]
[393516297,1762746638727,-151.0,0.00020548,7]